bitfinex/quotes_SOLUSD_20260113
["timestamp","ask_amount","ask_price","bid_price","bid_amount"]
[1768329429138,1e-08,143.42,143.4,0.7094387]
[1768329429334,27.89559016,143.46,143.4,0.7094387]
[1768329429538,1e-08,143.42,143.4,0.7094387]
[1768329429836,27.89559016,143.46,143.4,0.7094387]
[1768329430142,3.49853499,143.42,143.4,0.7094387]
[1768329433048,10.47027478,143.44,143.41,0.7094387]
[1768329434243,3.49853499,143.45,143.42,0.7094387]
[1768329435124,3.49853499,143.46,143.42,0.7094387]
[1768329435335,10.46935573,143.46,143.42,0.7094387]
[1768329435726,3.49853499,143.46,143.43,0.7094387]
[1768329435936,10.46912875,143.46,143.43,0.7094387]
[1768329438345,3.49853499,143.46,143.44,0.70072979]
[1768329438525,3.49853499,143.47,143.44,0.70072979]
[1768329438723,3.49853499,143.46,143.44,0.70072979]
[1768329439246,24.3936437,143.48,143.44,0.70072979]
[1768329439463,3.49853499,143.45,143.44,0.70072979]
[1768329439752,3.49853499,143.46,143.44,0.70072979]
[1768329440952,16.21853499,143.45,143.36,0.70072979]
[1768329441143,12.72,143.45,143.36,0.70072979]
[1768329441346,4.86489504,143.44,143.36,0.70072979]
[1768329441555,3.49853499,143.39,143.36,0.70072979]
[1768329441732,3.49853499,143.38,143.36,0.70072979]
[1768329443259,3.49853499,143.4,143.37,0.70072979]
[1768329443433,6.97319296,143.41,143.37,0.70072979]
[1768329443835,3.49853499,143.4,143.37,0.70072979]
[1768329445860,2.77353499,143.4,143.37,6.9748976]
[1768329446062,3.49853499,143.41,143.37,6.9748976]
[1768329446356,0.65289296,143.37,143.3,7.04978072]
[1768329446562,3.49853499,143.38,143.3,0.70072979]
[1768329446563,3.49853499,143.33,143.3,0.70072979]
[1768329446738,12.72,143.38,143.3,0.70072979]
[1768329446932,3.49853499,143.34,143.31,7.67851731]
[1768329447335,3.49853499,143.34,143.31,0.70072979]
[1768329447953,10.47448745,143.35,143.31,0.70072979]
[1768329448837,10.47448745,143.35,143.31,7.67858978]
[1768329449137,17.43787178,143.37,143.33,0.70072979]
[1768329449138,0.65289296,143.37,143.33,0.70072979]
[1768329449337,11.12607669,143.38,143.33,0.70072979]
[1768329450056,7.62702676,143.39,143.35,0.70072979]
[1768329450253,11.12556175,143.39,143.35,0.70072979]
[1768329452157,0.65289296,143.39,143.36,0.70072979]
[1768329452363,11.1207622,143.4,143.36,0.70072979]
[1768329454481,0.65284945,143.39,143.36,0.70072979]
[1768329454871,0.65284945,143.39,143.35,0.65994632]
[1768329456166,4.15138444,143.39,143.35,0.65994632]
[1768329456988,0.64858455,143.38,143.35,6.97581615]
[1768329458171,0.69029309,143.4,143.36,0.65994632]
[1768329459071,7.66387941,143.4,143.36,0.65994632]
[1768329459447,0.69029309,143.4,143.36,0.65994632]
[1768329459660,7.66252531,143.43,143.38,0.65994632]
[1768329459867,0.61151534,143.42,143.39,0.65994632]
[1768329460161,0.61151534,143.42,143.38,11.13288499]
[1768329460979,7.58409425,143.42,143.38,4.15848131]
[1768329462565,0.61151534,143.42,143.38,11.13276752]
[1768329464275,0.61151534,143.42,143.39,3.49853499]
[1768329464770,0.61151534,143.42,143.38,11.13276752]
[1768329465868,0.61151534,143.42,143.38,7.63423253]
[1768329466071,0.61151534,143.42,143.38,11.13276752]
[1768329467861,6.97225458,143.43,143.39,0.65994632]
[1768329468067,7.58376992,143.43,143.39,4.15848131]
[1768329469374,7.58376992,143.43,143.39,2.89915661]
[1768329470078,0.68950531,143.42,143.39,2.23921029]
[1768329470265,0.68950531,143.42,143.39,2.89915661]
[1768329470878,0.68950531,143.42,143.39,2.23921029]
[1768329471177,7.6621444,143.42,143.38,7.63423253]
[1768329471378,7.6621444,143.42,143.39,2.23921029]
[1768329471556,7.6621444,143.42,143.38,9.87344282]
[1768329471958,0.68950531,143.42,143.38,9.87344282]
[1768329474402,7.66253414,143.43,143.4,0.65994632]
[1768329474973,0.69029309,143.43,143.4,2.89915661]
[1768329475387,0.69029309,143.45,143.42,0.65994632]
[1768329475606,0.69029309,143.45,143.42,9.81155611]
[1768329477186,7.66084693,143.47,143.42,9.21160979]
[1768329477782,0.67091534,143.46,143.42,2.89915661]
[1768329478680,0.67091534,143.46,143.42,0.65994632]
[1768329479586,2.91012563,143.46,143.42,7.63246483]
[1768329479774,2.91012563,143.46,143.43,0.65994632]
[1768329481082,0.69009931,143.45,143.41,0.65994632]
[1768329481302,0.67110718,143.44,143.41,0.65994632]
[1768329481502,0.67129521,143.42,143.39,7.63381037]
[1768329481792,2.92950338,143.43,143.39,7.63381037]
[1768329481996,0.69029309,143.43,143.4,0.65994632]
[1768329482561,2.92950338,143.43,143.4,0.65994632]
[1768329483998,2.23921029,143.43,143.4,0.65994632]
[1768329484789,2.91012563,143.43,143.39,7.63389072]
[1768329485177,2.91012563,143.43,143.4,7.64086709]
[1768329485378,2.23921029,143.43,143.4,7.64086709]
[1768329486712,2.23921029,143.43,143.4,0.66743053]
[1768329487596,0.70295728,143.44,143.4,7.64075603]
[1768329487794,2.94216757,143.44,143.4,7.64075603]
[1768329488193,0.70295728,143.44,143.4,7.64075603]
[1768329488396,2.94216757,143.44,143.4,7.64075603]
[1768329488598,0.65837779,143.43,143.4,7.64075603]
[1768329488792,0.65837779,143.43,143.4,6.9733255]
[1768329488992,0.65837779,143.43,143.4,7.64075603]
[1768329489292,0.70251149,143.42,143.38,0.66743053]
[1768329489496,2.89846198,143.39,143.35,0.66743053]
[1768329489686,2.94085662,143.38,143.35,0.66743053]
[1768329489993,2.94085662,143.38,143.34,0.66743053]
[1768329490604,2.23921029,143.38,143.34,0.66743053]
[1768329490984,2.94216757,143.39,143.35,7.64336356]
[1768329491203,2.94216757,143.4,143.36,0.66743053]
[1768329492309,2.23921029,143.39,143.36,0.66743053]
[1768329493511,0.70251149,143.38,143.36,6.97499635]
[1768329493688,2.94172178,143.38,143.36,6.97499635]
[1768329494407,2.23921029,143.38,143.36,6.97499635]
[1768329494608,2.23921029,143.39,143.36,6.97499635]
[1768329495292,2.23921029,143.39,143.36,25.08104295]
[1768329495615,2.94216757,143.4,143.36,25.08104295]
[1768329495792,2.23921029,143.39,143.36,25.08104295]
[1768329496193,0.70295728,143.4,143.36,25.08104295]
[1768329496581,2.94216757,143.4,143.36,25.08104295]
[1768329497005,19.69224689,143.43,143.37,0.69934848]
[1768329497006,0.71618458,143.42,143.37,0.69934848]
[1768329497208,2.23921029,143.41,143.37,0.69934848]
[1768329497408,2.95539487,143.42,143.37,0.69934848]
[1768329497608,0.71618458,143.42,143.37,0.69934848]
[1768329497807,2.95539487,143.42,143.37,0.69934848]
[1768329498192,2.95539487,143.42,143.38,7.6738219]
[1768329498504,2.95539487,143.43,143.39,0.69934848]
[1768329498693,2.23921029,143.43,143.39,0.69934848]
[1768329499215,2.88449306,143.43,143.39,0.69934848]
[1768329499805,2.23921029,143.43,143.39,0.69934848]
[1768329500411,2.23921029,143.43,143.4,7.67284917]
[1768329502229,2.88519499,143.41,143.39,6.97379036]
[1768329503313,0.6459847,143.41,143.39,6.97379036]
[1768329503518,2.95539487,143.42,143.39,6.97398702]
[1768329505007,2.95539487,143.42,143.39,7.6733355]
[1768329505203,2.23921029,143.42,143.39,7.6733355]
[1768329505426,2.95539487,143.43,143.39,25.10830307]
[1768329506419,2.95539487,143.43,143.4,0.69934848]
[1768329508604,2.95539487,143.43,143.4,7.67237645]
[1768329508807,2.95539487,143.43,143.4,7.61237645]
[1768329509102,0.70479664,143.4,143.39,6.97377069]
[1768329509319,0.71595683,143.39,143.35,6.97593303]
[1768329509543,2.23921029,143.38,143.35,6.97593303]
[1768329509821,2.94411853,143.38,143.35,6.97593303]
[1768329510335,2.94411853,143.38,143.35,24.41508599]
[1768329510506,2.23921029,143.38,143.35,24.41508599]
[1768329510838,2.23921029,143.38,143.35,25.11443447]
[1768329512330,2.94389306,143.39,143.35,25.11443447]
[1768329513547,2.23921029,143.4,143.36,0.69934848]
[1768329513713,6.97175713,143.44,143.38,0.69934848]
[1768329513913,2.23921029,143.43,143.38,0.69934848]
[1768329514330,2.23921029,143.43,143.39,6.97398702]
[1768329514731,2.23921029,143.43,143.39,7.6733355]
[1768329514937,9.2112943,143.43,143.39,7.6733355]
[1768329515243,2.23921029,143.42,143.38,6.97430145]
[1768329515603,0.62330259,143.41,143.38,6.97430145]
[1768329515803,2.23921029,143.41,143.37,6.97478344]
[1768329516051,0.61805956,143.39,143.36,6.97517197]
[1768329516513,0.61805956,143.39,143.36,7.65783879]
[1768329516903,2.86251288,143.4,143.36,7.65783879]
[1768329519632,0.62330259,143.4,143.36,7.65783879]
[1768329520009,0.099,143.39,143.35,7.65839707]
[1768329520216,0.61805956,143.38,143.35,6.97573025]
[1768329521729,0.62330259,143.4,143.36,9.89716755]
[1768329521908,0.62330259,143.4,143.36,7.65795726]
[1768329522331,0.62330259,143.4,143.36,25.09657333]
[1768329522630,2.86251288,143.41,143.37,0.68266682]
[1768329522833,2.86251288,143.41,143.37,0.62266682]
[1768329524625,2.39761029,143.4,143.37,6.974757]
[1768329525007,0.1584,143.4,143.37,6.974757]
[1768329525219,2.39761029,143.4,143.37,6.974757]
[1768329525419,14.95921029,143.42,143.38,0.68266682]
[1768329525616,14.95921029,143.42,143.38,0.62266682]
[1768329526029,15.62349096,143.42,143.38,0.62266682]
[1768329526437,0.1772317,143.41,143.38,7.5969081]
[1768329526945,2.23921029,143.42,143.38,6.97424128]
[1768329527645,0.65463661,143.38,143.35,0.68266682]
[1768329527829,0.65463661,143.38,143.34,6.9764197]
[1768329527830,0.18677932,143.37,143.34,6.9764197]
[1768329528036,2.23921029,143.38,143.34,7.65908652]
[1768329528418,0.1772317,143.39,143.34,7.65908652]
[1768329528819,2.23921029,143.38,143.34,7.65908652]
[1768329529237,2.89862047,143.38,143.34,7.65908652]
[1768329531223,0.66428067,143.4,143.35,0.68266682]
[1768329531422,0.66428067,143.4,143.36,0.68266682]
[1768329532231,0.66428067,143.4,143.37,6.97495989]
[1768329533728,12.72,143.41,143.38,0.68266682]
[1768329534131,0.66428067,143.44,143.4,4.1835235]
[1768329534425,0.66428067,143.44,143.4,0.62266682]
[1768329534632,0.2366317,143.43,143.39,6.97398702]
[1768329536346,0.2366317,143.43,143.39,7.65665384]
[1768329538023,0.2366317,143.43,143.39,11.15751052]
[1768329538349,0.2366317,143.43,143.39,7.65665384]
[1768329539062,0.24086542,143.41,143.38,6.97427485]
[1768329539225,4.16513735,143.42,143.39,6.97392424]
[1768329539424,0.66428067,143.42,143.39,6.97392424]
[1768329540341,4.16513735,143.42,143.38,7.65697015]
[1768329540522,11.13769884,143.42,143.38,7.65697015]
[1768329540721,4.16513735,143.42,143.38,7.65697015]
[1768329542748,0.2366317,143.41,143.37,24.41200871]
[1768329542939,0.2366317,143.41,143.37,25.09467553]
[1768329543257,4.15666947,143.38,143.35,6.97554932]
[1768329543462,3.73748838,143.4,143.36,6.97522911]
[1768329543749,0.66000418,143.39,143.36,6.97522911]
[1768329544331,4.16513735,143.4,143.36,7.65789593]
[1768329544739,0.66428067,143.4,143.36,7.65789593]
[1768329544940,4.16513735,143.4,143.36,7.65789593]
[1768329545142,3.50085668,143.39,143.36,7.65789593]
[1768329545761,4.16086086,143.38,143.35,6.97583879]
[1768329546138,3.50085668,143.39,143.35,7.63865422]
[1768329546453,3.72403831,143.39,143.36,6.97538864]
[1768329547258,3.72403831,143.39,143.35,7.63853314]
[1768329551662,3.50085668,143.4,143.36,0.66281543]
[1768329551850,0.6778666,143.41,143.36,0.66281543]
[1768329552064,4.17872328,143.41,143.36,0.66281543]
[1768329552243,0.22318163,143.4,143.36,0.66281543]
[1768329552962,3.72403831,143.4,143.36,0.66281543]
[1768329553851,3.72403831,143.4,143.37,6.97495989]
[1768329555065,3.72403831,143.4,143.36,7.63814168]
[1768329555659,3.50085668,143.39,143.36,7.63814168]
[1768329557463,0.22318163,143.4,143.31,13.41332217]
[1768329557464,0.65895137,143.36,143.31,13.41332217]
[1768329557656,3.50085668,143.32,143.3,0.69332217]
[1768329557966,3.50085668,143.31,143.29,0.69332217]
[1768329558143,3.50085668,143.32,143.29,0.69332217]
[1768329558468,3.50085668,143.31,143.29,0.69332217]
[1768329559966,0.66320648,143.34,143.29,7.67217226]
[1768329560163,0.23769514,143.33,143.29,7.67217226]
[1768329560368,3.50085668,143.32,143.29,7.67217226]
[1768329561770,0.23769514,143.33,143.29,7.67217226]
[1768329562097,3.50085668,143.32,143.29,7.67217226]
[1768329562475,3.50085668,143.33,143.3,0.69332217]
[1768329562765,0.66320648,143.35,143.31,0.69332217]
[1768329563470,12.72,143.36,143.32,0.69332217]
[1768329563673,13.38320648,143.39,143.34,0.69332217]
[1768329563849,16.88406316,143.39,143.34,0.69332217]
[1768329564658,16.88406316,143.39,143.34,7.66970822]
[1768329564659,23.85815989,143.39,143.34,7.66970822]
[1768329565553,23.85815989,143.39,143.35,0.69332217]
[1768329565969,13.38320648,143.39,143.35,0.69332217]
[1768329566173,12.72,143.39,143.35,0.69332217]
[1768329567078,12.72,143.39,143.35,7.66887016]
[1768329567975,12.72,143.39,143.36,0.69332217]
[1768329568163,4.16406316,143.42,143.37,0.69332217]
[1768329568369,0.23769514,143.41,143.37,0.69332217]
[1768329568572,3.73855182,143.41,143.37,0.69332217]
[1768329569882,10.71158698,143.41,143.37,0.69332217]
[1768329570177,7.2107303,143.41,143.37,0.69332217]
[1768329571665,20.35587752,143.42,143.38,0.69332217]
[1768329572675,0.23769514,143.41,143.36,0.69332217]
[1768329572870,11.13349585,143.4,143.36,0.69332217]
[1768329574158,28.56724759,143.4,143.36,0.69332217]
[1768329574372,0.2419077,143.39,143.36,0.69332217]
[1768329574974,0.2419077,143.39,143.35,0.68090583]
[1768329576291,6.97406689,143.39,143.35,0.68090583]
[1768329578792,3.50085668,143.37,143.32,0.68090583]
[1768329578979,3.50085668,143.36,143.32,0.68090583]
[1768329579180,3.50085668,143.35,143.31,0.68090583]
[1768329580091,3.50085668,143.36,143.31,0.68090583]
[1768329580389,3.50085668,143.37,143.32,0.68090583]
[1768329580766,4.18743198,143.37,143.32,0.68090583]
[1768329580970,7.19000643,143.36,143.32,0.68090583]
[1768329581183,0.21456001,143.36,143.32,0.68090583]
[1768329581387,10.69058565,143.37,143.32,0.68090583]
[1768329582678,6.97467441,143.38,143.34,0.68090583]
[1768329583188,4.18271183,143.37,143.34,0.68090583]
[1768329583386,4.18271183,143.37,143.32,6.9773013]
[1768329583387,3.72008964,143.36,143.32,0.68090583]
[1768329583789,0.67722893,143.35,143.32,0.68090583]
[1768329584091,3.50085668,143.36,143.32,0.68090583]
[1768329584298,4.18743198,143.37,143.32,0.68090583]
[1768329584778,6.97544642,143.36,143.32,0.68090583]
[1768329585884,6.97544642,143.36,143.33,0.68090583]
[1768329586084,10.47598737,143.37,143.33,0.68090583]
[1768329586783,11.1620688,143.38,143.33,0.68090583]
[1768329588307,11.1620688,143.38,143.34,0.68090583]
[1768329589182,3.50085668,143.37,143.34,0.68090583]
[1768329589392,7.66121212,143.38,143.34,0.68090583]
[1768329589783,3.50085668,143.37,143.34,0.68090583]
[1768329591808,10.4759016,143.37,143.34,0.68090583]
[1768329592810,4.18271183,143.35,143.3,0.68090583]
[1768329593109,16.22085668,143.36,143.31,0.68090583]
[1768329593407,14.96186061,143.36,143.32,0.68090583]
[1768329593581,15.64371576,143.36,143.32,0.68090583]
[1768329594085,26.87685917,143.35,143.3,0.68090583]
[1768329594280,2.24186061,143.34,143.3,0.68090583]
[1768329595295,26.87685917,143.35,143.3,0.68090583]
[1768329595804,7.6539505,143.34,143.3,0.68090583]
[1768329596104,2.92371576,143.33,143.3,0.68090583]
[1768329596311,2.92371576,143.33,143.29,0.68090583]
[1768329596491,24.41777082,143.34,143.27,7.66052454]
[1768329596492,0.67722893,143.31,143.27,7.66052454]
[1768329596685,0.61722894,143.31,143.27,7.66052454]
[1768329597713,2.24186061,143.32,143.26,18.42019763]
[1768329597714,9.2204007,143.3,143.26,18.42019763]
[1768329598814,9.906976,143.3,143.26,18.42019763]
[1768329599190,2.29702063,143.28,143.26,17.67689503]
[1768329599385,9.22087885,143.29,143.26,0.2]
[1768329599632,9.22087885,143.29,143.26,0.88090583]
[1768329599809,2.24186061,143.29,143.26,0.88090583]
[1768329600591,9.2207718,143.29,143.26,0.88090583]
[1768329600796,6.97891119,143.29,143.26,0.88090583]
[1768329601000,9.2207718,143.29,143.26,0.88090583]
[1768329601811,21.94038474,143.3,143.27,0.68090583]
[1768329602312,12.72,143.3,143.27,0.68090583]
[1768329602493,14.96186061,143.3,143.27,0.68090583]
[1768329603319,2.24186061,143.29,143.26,0.88090583]
[1768329603696,2.24186061,143.28,143.26,0.2]
[1768329604817,19.69841951,143.3,143.26,0.2]
[1768329604818,2.24186061,143.29,143.26,0.2]
[1768329604990,19.69841951,143.3,143.27,0.67446504]
[1768329605191,14.96186061,143.3,143.27,0.67446504]
[1768329606125,12.72,143.3,143.28,0.67446504]
[1768329606298,2.24186061,143.31,143.28,0.67446504]
[1768329606823,2.24186061,143.31,143.23,12.72]
[1768329607010,2.24186061,143.31,143.25,2.24186061]
[1768329607209,9.21974467,143.31,143.25,2.24186061]
[1768329608622,9.21974467,143.31,143.26,6.98004217]
[1768329608797,9.21974467,143.31,143.27,0.67446504]
[1768329609322,2.24186061,143.31,143.28,0.67446504]
[1768329609712,7.08935611,143.32,143.28,0.67446504]
[1768329610016,2.24186061,143.31,143.28,0.67446504]
[1768329611101,22.60026478,143.33,143.29,0.67446504]
[1768329611603,12.72,143.33,143.3,0.67446504]
[1768329612220,19.69692036,143.33,143.3,0.67446504]
[1768329612523,21.93878097,143.33,143.3,0.67446504]
[1768329612998,22.05617768,143.33,143.28,7.6537753]
[1768329613204,2.24186061,143.32,143.29,0.67446504]
[1768329614023,19.80887782,143.33,143.29,0.67446504]
[1768329614226,22.05073843,143.33,143.29,0.67446504]
[1768329614711,2.24186061,143.32,143.29,0.67446504]
[1768329615705,22.05073843,143.33,143.29,0.67446504]
[1768329617418,15.07381807,143.33,143.3,0.70982544]
[1768329617912,14.96186061,143.33,143.3,0.70982544]
[1768329618116,12.72,143.33,143.3,0.70982544]
[1768329618319,21.93881208,143.33,143.3,0.70982544]
[1768329618617,14.96186061,143.33,143.3,0.70982544]
[1768329619411,21.93891316,143.33,143.3,0.70982544]
[1768329621944,2.24186061,143.32,143.29,0.70982544]
[1768329622142,2.34655772,143.32,143.29,0.70982544]
[1768329623239,2.24186061,143.32,143.29,0.70982544]
[1768329623535,2.91057099,143.32,143.29,0.70982544]
[1768329623742,0.66871038,143.32,143.29,0.70982544]
[1768329624241,9.88821127,143.32,143.29,0.70982544]
[1768329624422,22.6133582,143.33,143.29,0.70982544]
[1768329624629,21.93889316,143.33,143.29,0.70982544]
[1768329625917,2.24186061,143.32,143.29,0.70982544]
[1768329627432,9.21951643,143.32,143.29,0.70982544]
[1768329627630,9.88822681,143.32,143.28,0.70982544]
[1768329628929,12.72,143.33,143.27,6.97969306]
[1768329628930,21.93899407,143.33,143.29,0.70982544]
[1768329629235,22.60770445,143.33,143.29,0.70982544]
[1768329629439,12.72,143.33,143.3,0.70982544]
[1768329632841,12.72,143.33,143.31,0.70982544]
[1768329636950,19.69699166,143.33,143.31,0.70982544]
[1768329637449,12.72,143.33,143.31,0.70982544]
[1768329637638,6.97603042,143.35,143.31,0.70982544]
[1768329637828,19.69603042,143.35,143.31,0.70982544]
[1768329638452,2.90875576,143.34,143.31,0.70982544]
[1768329639941,9.21836245,143.34,143.31,0.70982544]
[1768329640449,2.24186061,143.33,143.31,0.70982544]
[1768329642130,2.24186061,143.32,143.29,0.6951669]
[1768329642357,14.96186061,143.32,143.29,0.6951669]
[1768329643358,15.0683548,143.32,143.28,0.6951669]
[1768329643544,2.24186061,143.31,143.28,0.6951669]
[1768329644070,9.85141304,143.31,143.28,0.6951669]
[1768329644557,9.1901219,143.31,143.28,0.6951669]
[1768329645558,2.24186061,143.29,143.26,0.6951669]
[1768329645756,2.21186062,143.29,143.26,0.6951669]
[1768329646058,14.93186062,143.29,143.26,0.6951669]
[1768329646234,21.91073215,143.29,143.26,0.6951669]
[1768329649145,14.93186062,143.29,143.26,0.6951669]
[1768329650556,14.90186063,143.29,143.26,0.6951669]
[1768329650758,12.72,143.29,143.27,0.6951669]
[1768329651136,12.69000001,143.29,143.28,0.6951669]
[1768329660172,12.69000001,143.29,143.27,0.6951669]
[1768329660379,12.69000001,143.29,143.26,7.67548241]
[1768329660870,12.69000001,143.29,143.26,0.6951669]
[1768329661055,16.19518996,143.29,143.26,0.6951669]
[1768329662783,12.69000001,143.29,143.26,0.6951669]
[1768329663885,19.66886202,143.29,143.26,0.6951669]
[1768329664179,1e-08,143.27,143.25,0.6951669]
[1768329664680,3.60602352,143.28,143.25,0.6951669]
[1768329665274,12.69000001,143.29,143.25,0.6951669]
[1768329665582,16.19518996,143.29,143.25,0.6951669]
[1768329665879,3.50518995,143.28,143.25,0.6951669]
[1768329666188,12.69000001,143.29,143.25,0.6951669]
[1768329666384,3.50518995,143.28,143.25,0.6951669]
[1768329666552,10.48501144,143.28,143.23,7.68525876]
[1768329666756,10.48501144,143.28,143.24,0.70373436]
[1768329667163,11.05864291,143.28,143.24,0.70373436]
[1768329668773,7.55345296,143.28,143.25,0.70373436]
[1768329669276,0.57363147,143.28,143.25,0.70373436]
[1768329669578,23.74789586,143.29,143.25,0.70373436]
[1768329669790,12.69000001,143.29,143.25,0.70373436]
[1768329670089,0.57363147,143.32,143.26,0.70373436]
[1768329670276,3.50518995,143.34,143.29,0.70373436]
[1768329670454,12.72,143.33,143.29,0.70373436]
[1768329670660,23.77122194,143.33,143.29,0.70373436]
[1768329671362,20.26603199,143.33,143.29,0.70373436]
[1768329671558,0.10830419,143.29,143.24,0.70373436]
[1768329671778,3.50518995,143.27,143.23,6.98162941]
[1768329671999,3.50518995,143.27,143.23,7.68536377]
[1768329672000,16.22518995,143.27,143.23,7.68536377]
[1768329672366,12.72,143.27,143.24,0.70373436]
[1768329673284,16.22518995,143.27,143.24,0.70373436]
[1768329673680,12.72,143.27,143.25,0.70373436]
[1768329673884,12.72,143.27,143.24,6.9809965]
[1768329673885,11.995,143.27,143.26,0.70373436]
[1768329674184,16.22518995,143.29,143.26,0.70373436]
[1768329674771,3.50518995,143.29,143.26,0.70373436]
[1768329675372,16.22518995,143.29,143.26,0.70373436]
[1768329675888,16.89709903,143.29,143.26,0.70373436]
[1768329676082,23.87606489,143.29,143.25,7.68449425]
[1768329676589,3.50518995,143.28,143.25,0.70373436]
[1768329677390,12.72,143.29,143.26,0.67174464]
[1768329678280,13.4237126,143.29,143.26,0.67174464]
[1768329678891,0.65826969,143.28,143.25,6.98065151]
[1768329679194,0.65826969,143.28,143.25,7.65239615]
[1768329679814,0.65826969,143.28,143.2,97.71473976]
[1768329679972,0.70237627,143.21,143.18,7.85567409]
[1768329680168,4.20756622,143.21,143.18,0.87174464]
[1768329680375,3.50518995,143.2,143.18,0.87174464]
[1768329680695,3.50518995,143.21,143.18,0.87174464]
[1768329680911,3.50518995,143.21,143.18,7.85576595]
[1768329681197,3.50518995,143.2,143.18,0.87174464]
[1768329681671,3.50518995,143.19,143.18,0.2]
[1768329682070,3.50518995,143.19,143.17,0.2]
[1768329682071,16.88345964,143.19,143.17,0.2]
[1768329682270,3.50518995,143.18,143.17,0.2]
[1768329682669,0.65871957,143.17,143.14,0.2]
[1768329682972,3.50518995,143.16,143.14,0.2]
[1768329683173,3.50518995,143.17,143.15,0.67174464]
[1768329683368,4.2093662,143.18,143.15,0.67174464]
[1768329683597,3.50518995,143.17,143.15,0.67174464]
[1768329683982,3.50518995,143.16,143.14,0.87174464]
[1768329684999,10.48992713,143.17,143.14,0.87174464]
[1768329685693,3.50518995,143.17,143.14,0.87174464]
[1768329686276,4.2093662,143.18,143.15,0.67174464]
[1768329686888,3.50518995,143.18,143.15,0.67174464]
[1768329688200,4.16300062,143.18,143.15,0.67174464]
[1768329688797,3.50518995,143.17,143.14,7.18596005]
[1768329689297,3.50518995,143.17,143.14,7.85770469]
[1768329691501,4.16345964,143.16,143.14,0.2]
[1768329691706,4.20844812,143.15,143.12,0.2]
[1768329691896,4.16390952,143.14,143.12,0.2]
[1768329692097,4.20890255,143.13,143.11,0.1]
[1768329692606,3.50518995,143.12,143.11,0.1]
[1768329693108,10.49242828,143.12,143.08,0.77174464]
[1768329693300,3.50518995,143.12,143.08,0.77174464]
[1768329693603,3.50518995,143.12,143.09,0.67174464]
[1768329694191,3.50518995,143.11,143.08,7.76072135]
[1768329694498,3.50518995,143.09,143.08,0.1]
[1768329694697,3.44518997,143.09,143.08,0.1]
[1768329694891,13.44325817,143.1,143.08,0.1]
[1768329695104,3.50518995,143.09,143.08,0.1]
[1768329695712,16.24518995,143.1,143.08,0.1]
[1768329696514,16.21518996,143.1,143.08,0.1]
[1768329697011,3.50518995,143.09,143.08,0.1]
[1768329697713,4.218958,143.09,143.06,0.1]
[1768329698096,4.218958,143.09,143.06,0.78407531]
[1768329698592,3.50518995,143.07,143.06,0.1]
[1768329698795,0.64831479,143.08,143.06,0.1]
[1768329698991,16.24518995,143.07,143.06,0.1]
[1768329699505,23.94813841,143.07,143.05,0.1]
[1768329699807,3.50518995,143.06,143.04,0.2]
[1768329700217,23.94813841,143.07,143.04,0.2]
[1768329700510,3.50518995,143.06,143.04,0.2]
[1768329701311,23.94813841,143.07,143.04,0.2]
[1768329702288,12.74,143.07,143.05,0.68407531]
[1768329703408,12.74,143.07,143.04,7.19092471]
[1768329703716,12.74,143.07,143.04,7.87500002]
[1768329705412,0.64831479,143.06,143.04,0.2]
[1768329706119,16.95962582,143.07,143.04,0.88407531]
[1768329706622,23.949321,143.07,143.04,0.2]
[1768329707916,10.49532691,143.06,143.04,0.2]
[1768329708419,13.45443587,143.07,143.04,0.2]
[1768329708420,23.94941351,143.07,143.04,0.2]
[1768329710223,16.95962582,143.07,143.04,0.88407531]
[1768329710432,23.94929122,143.07,143.04,0.2]
[1768329711634,0.64831479,143.04,143.0,6.12633716]
[1768329711924,12.74,143.03,143.0,0.68407531]
[1768329712100,12.74,143.04,143.01,0.68407531]
[1768329712503,23.23627926,143.04,143.01,0.68407531]
[1768329712726,16.24518995,143.04,143.01,0.68407531]
[1768329713023,23.23625762,143.04,143.01,0.68407531]
[1768329713325,16.24518995,143.04,143.01,0.68407531]
[1768329713822,3.50518995,143.03,142.99,0.78407531]
[1768329714008,3.50518995,143.03,142.99,7.77751783]
[1768329714727,6.99185527,143.03,142.99,0.1]
[1768329714901,3.50518995,143.02,142.99,0.1]
[1768329715101,6.99185527,143.03,142.99,0.1]
[1768329715306,2.25242434,143.02,142.99,0.1]
[1768329715604,12.74,143.01,142.99,0.1]
[1768329716621,12.71000001,143.01,142.99,0.1]
[1768329716822,12.71000001,143.01,142.99,7.77754549]
[1768329717218,12.71000001,143.01,143.0,0.68407531]
[1768329717516,12.68000002,143.01,143.0,0.68407531]
[1768329717713,0.44965365,143.04,143.0,0.68407531]
[1768329718025,0.44965365,143.04,143.01,0.68407531]
[1768329718223,6.99065596,143.05,143.01,0.68407531]
[1768329718525,0.71443587,143.06,143.02,0.68407531]
[1768329719410,2.96686021,143.06,143.02,0.68407531]
[1768329719611,0.71443587,143.07,143.03,0.68407531]
[1768329720114,0.71443587,143.07,143.02,9.24434627]
[1768329720321,0.44965365,143.06,143.02,9.92842158]
[1768329720514,13.45443587,143.08,143.04,0.68407531]